Workbook

Sheet leere Vorlage
A1: Nährwertberechnung | D1: Bitte nur grün unterlegte Felder ausfüllen | L1: Produktename
B3: Zutaten
B4: Menge im Rezept in g/ml
A5: Energie | B5: kJ/100 g
B6: im Produkt | C6: =(C4*C5)/100 -> 0 | D6: =(D4*D5)/100 -> 0 | E6: 0 | F6: 0 | G6: 0 | H6: 0 | I6: 0 | J6: 0 | K6: 0 | L6: 0 | M6: 0 | N6: 0 | O6: 0 | P6: =(P4*P5)/100 -> 0 | Q6: =(Q4*Q5)/100 -> 0 | R6: 0
B7: kcal/100 g
B8: im Produkt | C8: =(C4*C7)/100 -> 0 | D8: =(D4*D7)/100 -> 0 | E8: 0 | F8: 0 | G8: 0 | H8: 0 | I8: 0 | J8: 0 | K8: 0 | L8: 0 | M8: 0 | N8: 0 | O8: 0 | P8: 0 | Q8: =(Q4*Q7)/100 -> 0 | R8: =(R4*R7)/100 -> 0
A9: Gesamtfett | B9: g/100 g
B10: im Produkt | C10: =(C4*C9)/100 -> 0 | D10: =(D4*D9)/100 -> 0 | E10: 0 | F10: 0 | G10: 0 | H10: 0 | I10: 0 | J10: 0 | K10: 0 | L10: 0 | M10: 0 | N10: 0 | O10: 0 | P10: 0 | Q10: =(Q4*Q9)/100 -> 0 | R10: =(R4*R9)/100 -> 0
A11: davon gesättigte Fettsäuren | B11: g/100 g
B12: im Produkt | C12: =(C4*C11)/100 -> 0 | D12: =(D4*D11)/100 -> 0 | E12: 0 | F12: 0 | G12: 0 | H12: 0 | I12: 0 | J12: 0 | K12: 0 | L12: 0 | M12: 0 | N12: 0 | O12: 0 | P12: 0 | Q12: =(Q4*Q11)/100 -> 0 | R12: =(R4*R11)/100 -> 0
A13: Kohlenhydrate | B13: g/100 g
B14: im Produkt | C14: =(C4*C13)/100 -> 0 | D14: =(D4*D13)/100 -> 0 | E14: 0 | F14: 0 | G14: 0 | H14: 0 | I14: 0 | J14: 0 | K14: 0 | L14: 0 | M14: 0 | N14: 0 | O14: 0 | P14: 0 | Q14: =(Q4*Q13)/100 -> 0 | R14: =(R4*R13)/100 -> 0
A15: davon Zucker | B15: g/100 g
B16: im Produkt | C16: =(C4*C15)/100 -> 0 | D16: =(D4*D15)/100 -> 0 | E16: 0 | F16: 0 | G16: 0 | H16: 0 | I16: 0 | J16: 0 | K16: 0 | L16: 0 | M16: 0 | N16: 0 | O16: 0 | P16: 0 | Q16: =(Q4*Q15)/100 -> 0 | R16: =(R4*R15)/100 -> 0
A17: Eiweiss/Protein | B17: g/100 g
B18: im Produkt | C18: =(C4*C17)/100 -> 0 | D18: =(D4*D17)/100 -> 0 | E18: 0 | F18: 0 | G18: 0 | H18: 0 | I18: 0 | J18: 0 | K18: 0 | L18: 0 | M18: 0 | N18: 0 | O18: 0 | P18: 0 | Q18: =(Q4*Q17)/100 -> 0 | R18: =(R4*R17)/100 -> 0
A19: Salz | B19: g/100 g
B20: im Produkt | C20: =(C4*C19)/100 -> 0 | D20: =(D4*D19)/100 -> 0 | E20: 0 | F20: 0 | G20: 0 | H20: 0 | I20: 0 | J20: 0 | K20: 0 | L20: 0 | M20: 0 | N20: 0 | O20: 0 | P20: 0 | Q20: =(Q4*Q19)/100 -> 0 | R20: =(R4*R19)/100 -> 0
A22: Gesamtmenge nach der Zubereitung [g/ml] | I22: Total im Rezept | K22: Menge pro 100 g
E23: Energie kJ | I23: =SUM(C6:Q6) -> 0 | K23: =(I23*100)/$B$22 -> 
E24: Energie kcal | I24: =SUM(C8:R8) -> 0 | K24: =(I24*100)/$B$22 -> 
E25: Gesamtfett | I25: =SUM(C10:R10) -> 0
E26: davon gesättigte Fettsäuren | I26: =SUM(C12:R12) -> 0
E27: Kohlenhydrate | I27: =SUM(C14:R14) -> 0
E28: davon Zucker | I28: =SUM(C16:R16) -> 0
E29: Eiweiss/Protein | I29: =SUM(C18:R18) -> 0
E30: Salz | I30: =SUM(C20:R20) -> 0
A31: © BFS Fachgruppe Direktvermarktung 2020, überarbeitet 2024
A32: Eva Flückiger, Paula Furrer-Amrein, Andrea Heimberg Müller, Manueal Isenschmid; überarbeitet Stefanie Rohn

Sheet Bauernbrot
A1: Nährwertberechnung | L1: Bauernbrot
B3: Zutaten | C3: Weizenmehl, weiss | D3: Dinkelmehl, weiss | E3: Roggenmehl, Ruch | F3: Vollmilch, pasteurisiert | G3: Kochsalz mit Jod & Fluor | H3: Frischhefe
B4: Menge im Rezept in g/ml | C4: 3000 | D4: 1000 | E4: 1000 | F4: 2500 | G4: 100 | H4: 100
A5: Energie | B5: kJ/100 g | C5: 1470 | D5: 1480 | E5: 1420 | F5: 284 | G5: 0 | H5: 353
B6: im Produkt | C6: =(C4*C5)/100 -> 44100 | D6: =(D4*D5)/100 -> 14800 | E6: 14200 | F6: 7100 | G6: 0 | H6: 353 | I6: 0 | J6: 0 | K6: 0 | L6: 0 | M6: 0 | N6: 0 | O6: 0 | P6: =(P4*P5)/100 -> 0 | Q6: =(Q4*Q5)/100 -> 0 | R6: 0
B7: kcal/100 g | C7: 346 | D7: 348 | E7: 336 | F7: 68 | G7: 0 | H7: 83
B8: im Produkt | C8: =(C4*C7)/100 -> 10380 | D8: =(D4*D7)/100 -> 3480 | E8: 3360 | F8: 1700 | G8: 0 | H8: 83 | I8: 0 | J8: 0 | K8: 0 | L8: 0 | M8: 0 | N8: 0 | O8: 0 | P8: 0 | Q8: 0 | R8: 0
A9: Gesamtfett | B9: g/100 g | C9: 1.1 | D9: 1.5 | E9: 1.3 | F9: 4 | G9: 0 | H9: 1
B10: im Produkt | C10: =(C4*C9)/100 -> 33 | D10: =(D4*D9)/100 -> 15 | E10: 13 | F10: 100 | G10: 0 | H10: 1 | I10: 0 | J10: 0 | K10: 0 | L10: 0 | M10: 0 | N10: 0 | O10: 0 | P10: 0 | Q10: 0 | R10: 0
A11: davon gesättigte Fettsäuren | B11: g/100 g | C11: 0.3 | D11: 0.3 | E11: 0.2 | F11: 2.4 | G11: 0 | H11: 0.14
B12: im Produkt | C12: =(C4*C11)/100 -> 9 | D12: =(D4*D11)/100 -> 3 | E12: 2 | F12: 60 | G12: 0 | H12: 0.14 | I12: 0 | J12: 0 | K12: 0 | L12: 0 | M12: 0 | N12: 0 | O12: 0 | P12: 0 | Q12: 0 | R12: 0
A13: Kohlenhydrate | B13: g/100 g | C13: 71 | D13: 69 | E13: 67.8 | F13: 4.7 | G13: 0 | H13: 1
B14: im Produkt | C14: =(C4*C13)/100 -> 2130 | D14: =(D4*D13)/100 -> 690 | E14: 678 | F14: 117.5 | G14: 0 | H14: 1 | I14: 0 | J14: 0 | K14: 0 | L14: 0 | M14: 0 | N14: 0 | O14: 0 | P14: 0 | Q14: 0 | R14: 0
A15: davon Zucker | B15: g/100 g | C15: 0.3 | D15: 0.9 | E15: 6.2 | F15: 4.7 | G15: 0 | H15: 0.13
B16: im Produkt | C16: =(C4*C15)/100 -> 9 | D16: =(D4*D15)/100 -> 9 | E16: 62 | F16: 117.5 | G16: 0 | H16: 0.13 | I16: 0 | J16: 0 | K16: 0 | L16: 0 | M16: 0 | N16: 0 | O16: 0 | P16: 0 | Q16: 0 | R16: 0
A17: Eiweiss/Protein | B17: g/100 g | C17: 11.5 | D17: 13.3 | E17: 9 | F17: 3.2 | G17: 0 | H17: 17
B18: im Produkt | C18: =(C4*C17)/100 -> 345 | D18: =(D4*D17)/100 -> 133 | E18: 90 | F18: 80 | G18: 0 | H18: 17 | I18: 0 | J18: 0 | K18: 0 | L18: 0 | M18: 0 | N18: 0 | O18: 0 | P18: 0 | Q18: 0 | R18: 0
A19: Salz | B19: g/100 g | C19: 0 | D19: 0 | E19: 0 | F19: 0.1 | G19: 100 | H19: 0
B20: im Produkt | C20: =(C4*C19)/100 -> 0 | D20: =(D4*D19)/100 -> 0 | E20: 0 | F20: 2.5 | G20: 100 | H20: 0 | I20: 0 | J20: 0 | K20: 0 | L20: 0 | M20: 0 | N20: 0 | O20: 0 | P20: 0 | Q20: 0 | R20: 0
A22: Gesamtmenge nach der Zubereitung [g/ml] | B22: 6470 | I22: Total im Rezept | K22: Menge pro 100 g
E23: Energie kJ | I23: =SUM(C6:Q6) -> 80553 | K23: =(I23*100)/$B$22 -> 1245.023184
E24: Energie kcal | I24: =SUM(C8:R8) -> 19003 | K24: =(I24*100)/$B$22 -> 293.7094281
E25: Gesamtfett | I25: =SUM(C10:R10) -> 162 | K25: 2.503863988
E26: davon gesättigte Fettsäuren | I26: =SUM(C12:R12) -> 74.14 | K26: 1.145904173
E27: Kohlenhydrate | I27: =SUM(C14:R14) -> 3616.5 | K27: 55.89644513
E28: davon Zucker | I28: =SUM(C16:R16) -> 197.63 | K28: 3.054559505
E29: Eiweiss/Protein | I29: =SUM(C18:R18) -> 665 | K29: 10.27820711
E30: Salz | I30: =SUM(C20:R20) -> 102.5 | K30: 1.58423493
A31: © BFS Fachgruppe Direktvermarktung 2020, überarbeitet 2024 | L31: Quelle: Nährwertdaten: www.naehrwertdaten.ch
A32: Eva Flückiger, Paula Furrer-Amrein, Andrea Heimberg Müller, Manueal Isenschmid; überarbeitet Stefanie Rohn | L32: Bundesamt für Lebensmittelsicherheit und Veterinärwesen BLV

Sheet Butterzopf
A1: Nährwertberechnung | L1: Butterzopf
B3: Zutaten | C3: Weizenmehl weiss | D3: Dinkelmehl weiss | E3: Kochbutter | F3: Vollmilch, pasteurisiert | G3: Kochsalz mit Jod & Fluor | H3: Frischhefe | I3: Hühnerei, ganz, roh
B4: Menge im Rezept in g/ml | C4: 4500 | D4: 500 | E4: 500 | F4: 3000 | G4: 100 | H4: 100 | I4: 90
A5: Energie | B5: kJ/100 g | C5: 1470 | D5: 1480 | E5: 3060 | F5: 282 | G5: 0 | H5: 402 | I5: 589
B6: im Produkt | C6: =(C4*C5)/100 -> 66150 | D6: =(D4*D5)/100 -> 7400 | E6: 15300 | F6: 8460 | G6: 0 | H6: 402 | I6: 530.1 | J6: 0 | K6: 0 | L6: 0 | M6: 0 | N6: 0 | O6: 0 | P6: =(P4*P5)/100 -> 0 | Q6: =(Q4*Q5)/100 -> 0 | R6: 0
B7: kcal/100 g | C7: 346 | D7: 348 | E7: 745 | F7: 68 | G7: 0 | H7: 96 | I7: 140
B8: im Produkt | C8: =(C4*C7)/100 -> 15570 | D8: =(D4*D7)/100 -> 1740 | E8: 3725 | F8: 2040 | G8: 0 | H8: 96 | I8: 126 | J8: 0 | K8: 0 | L8: 0 | M8: 0 | N8: 0 | O8: 0 | P8: 0 | Q8: 0 | R8: 0
A9: Gesamtfett | B9: g/100 g | C9: 1.1 | D9: 1.5 | E9: 82.2 | F9: 4 | G9: 0 | H9: 1.2 | I9: 9.8
B10: im Produkt | C10: =(C4*C9)/100 -> 49.5 | D10: =(D4*D9)/100 -> 7.5 | E10: 411 | F10: 120 | G10: 0 | H10: 1.2 | I10: 8.82 | J10: 0 | K10: 0 | L10: 0 | M10: 0 | N10: 0 | O10: 0 | P10: 0 | Q10: 0 | R10: 0
A11: davon gesättigte Fettsäuren | B11: g/100 g | C11: 0.3 | D11: 0.3 | E11: 49.3 | F11: 2.4 | G11: 0 | H11: 0.14 | I11: 2.6
B12: im Produkt | C12: =(C4*C11)/100 -> 13.5 | D12: =(D4*D11)/100 -> 1.5 | E12: 246.5 | F12: 72 | G12: 0 | H12: 0.14 | I12: 2.34 | J12: 0 | K12: 0 | L12: 0 | M12: 0 | N12: 0 | O12: 0 | P12: 0 | Q12: 0 | R12: 0
A13: Kohlenhydrate | B13: g/100 g | C13: 71 | D13: 69 | E13: 0.7 | F13: 4.7 | G13: 0 | H13: 1.1 | I13: 0.3
B14: im Produkt | C14: =(C4*C13)/100 -> 3195 | D14: =(D4*D13)/100 -> 345 | E14: 3.5 | F14: 141 | G14: 0 | H14: 1.1 | I14: 0.27 | J14: 0 | K14: 0 | L14: 0 | M14: 0 | N14: 0 | O14: 0 | P14: 0 | Q14: 0 | R14: 0
A15: davon Zucker | B15: g/100 g | C15: 0.3 | D15: 0.9 | E15: 0.6 | F15: 4.7 | G15: 0 | H15: 0.13 | I15: 0.3
B16: im Produkt | C16: =(C4*C15)/100 -> 13.5 | D16: =(D4*D15)/100 -> 4.5 | E16: 3 | F16: 141 | G16: 0 | H16: 0.13 | I16: 0.27 | J16: 0 | K16: 0 | L16: 0 | M16: 0 | N16: 0 | O16: 0 | P16: 0 | Q16: 0 | R16: 0
A17: Eiweiss/Protein | B17: g/100 g | C17: 11.5 | D17: 13.3 | E17: 0.5 | F17: 3.2 | G17: 0 | H17: 16.7 | I17: 12.6
B18: im Produkt | C18: =(C4*C17)/100 -> 517.5 | D18: =(D4*D17)/100 -> 66.5 | E18: 2.5 | F18: 96 | G18: 0 | H18: 16.7 | I18: 11.34 | J18: 0 | K18: 0 | L18: 0 | M18: 0 | N18: 0 | O18: 0 | P18: 0 | Q18: 0 | R18: 0
A19: Salz | B19: g/100 g | C19: 0 | D19: 0 | E19: 0 | F19: 0.1 | G19: 100 | H19: 0.1 | I19: 0.4
B20: im Produkt | C20: =(C4*C19)/100 -> 0 | D20: =(D4*D19)/100 -> 0 | E20: 0 | F20: 3 | G20: 100 | H20: 0.1 | I20: 0.36 | J20: 0 | K20: 0 | L20: 0 | M20: 0 | N20: 0 | O20: 0 | P20: 0 | Q20: 0 | R20: 0
A22: Gesamtmenge nach der Zubereitung [g/ml] | B22: 7660 | I22: Total im Rezept | K22: Menge pro 100 g
E23: Energie kJ | I23: =SUM(C6:Q6) -> 98242.1 | K23: =(I23*100)/$B$22 -> 1282.533943
E24: Energie kcal | I24: =SUM(C8:R8) -> 23297 | K24: =(I24*100)/$B$22 -> 304.1383812
E25: Gesamtfett | I25: =SUM(C10:R10) -> 598.02 | K25: 7.807049608
E26: davon gesättigte Fettsäuren | I26: =SUM(C12:R12) -> 335.98 | K26: 4.38616188
E27: Kohlenhydrate | I27: =SUM(C14:R14) -> 3685.87 | K27: 48.11840731
E28: davon Zucker | I28: =SUM(C16:R16) -> 162.4 | K28: 2.120104439
E29: Eiweiss/Protein | I29: =SUM(C18:R18) -> 710.54 | K29: 9.275979112
E30: Salz | I30: =SUM(C20:R20) -> 103.46 | K30: 1.350652742
A31: © BFS Fachgruppe Direktvermarktung 2020, überarbeitet 2024 | L31: Quelle: Nährwertdaten: www.naehrwertdaten.ch
A32: Eva Flückiger, Paula Furrer-Amrein, Andrea Heimberg Müller, Manueal Isenschmid; überarbeitet Stefanie Rohn | L32: Bundesamt für Lebensmittelsicherheit und Veterinärwesen BLV

Sheet Schokoladenguetzli
A1: Nährwertberechnung | L1: Schokoladenguetzli
B3: Zutaten | C3: Kochbutter | D3: Zucker, weiss | E3: Hühnerei, ganz, roh | F3: Schokolade dunkel (bitter) | G3: Weizenmehl, halbweiss
B4: Menge im Rezept in g/ml | C4: 270 | D4: 220 | E4: 160 | F4: 150 | G4: 450
A5: Energie | B5: kJ/100 g | C5: 3060 | D5: 1700 | E5: 589 | F5: 2240 | G5: 1440
B6: im Produkt | C6: =(C4*C5)/100 -> 8262 | D6: =(D4*D5)/100 -> 3740 | E6: 942.4 | F6: 3360 | G6: 6480 | H6: 0 | I6: 0 | J6: 0 | K6: 0 | L6: 0 | M6: 0 | N6: 0 | O6: 0 | P6: =(P4*P5)/100 -> 0 | Q6: =(Q4*Q5)/100 -> 0 | R6: 0
B7: kcal/100 g | C7: 745 | D7: 400 | E7: 140 | F7: 537 | G7: 340
B8: im Produkt | C8: =(C4*C7)/100 -> 2011.5 | D8: =(D4*D7)/100 -> 880 | E8: 224 | F8: 805.5 | G8: 1530 | H8: 0 | I8: 0 | J8: 0 | K8: 0 | L8: 0 | M8: 0 | N8: 0 | O8: 0 | P8: 0 | Q8: 0 | R8: 0
A9: Gesamtfett | B9: g/100 g | C9: 82.2 | D9: 0 | E9: 9.8 | F9: 31.8 | G9: 1.5
B10: im Produkt | C10: =(C4*C9)/100 -> 221.94 | D10: =(D4*D9)/100 -> 0 | E10: 15.68 | F10: 47.7 | G10: 6.75 | H10: 0 | I10: 0 | J10: 0 | K10: 0 | L10: 0 | M10: 0 | N10: 0 | O10: 0 | P10: 0 | Q10: 0 | R10: 0
A11: davon gesättigte Fettsäuren | B11: g/100 g | C11: 49.3 | D11: 0 | E11: 2.6 | F11: 19.7 | G11: 0.2
B12: im Produkt | C12: =(C4*C11)/100 -> 133.11 | D12: =(D4*D11)/100 -> 0 | E12: 4.16 | F12: 29.55 | G12: 0.9 | H12: 0 | I12: 0 | J12: 0 | K12: 0 | L12: 0 | M12: 0 | N12: 0 | O12: 0 | P12: 0 | Q12: 0 | R12: 0
A13: Kohlenhydrate | B13: g/100 g | C13: 0.7 | D13: 100 | E13: 0.3 | F13: 53.4 | G13: 66.2
B14: im Produkt | C14: =(C4*C13)/100 -> 1.89 | D14: =(D4*D13)/100 -> 220 | E14: 0.48 | F14: 80.1 | G14: 297.9 | H14: 0 | I14: 0 | J14: 0 | K14: 0 | L14: 0 | M14: 0 | N14: 0 | O14: 0 | P14: 0 | Q14: 0 | R14: 0
A15: davon Zucker | B15: g/100 g | C15: 0.6 | D15: 100 | E15: 0.3 | F15: 50 | G15: 0.5
B16: im Produkt | C16: =(C4*C15)/100 -> 1.62 | D16: =(D4*D15)/100 -> 220 | E16: 0.48 | F16: 75 | G16: 2.25 | H16: 0 | I16: 0 | J16: 0 | K16: 0 | L16: 0 | M16: 0 | N16: 0 | O16: 0 | P16: 0 | Q16: 0 | R16: 0
A17: Eiweiss/Protein | B17: g/100 g | C17: 0.5 | D17: 0 | E17: 12.6 | F17: 5.7 | G17: 13
B18: im Produkt | C18: =(C4*C17)/100 -> 1.35 | D18: =(D4*D17)/100 -> 0 | E18: 20.16 | F18: 8.55 | G18: 58.5 | H18: 0 | I18: 0 | J18: 0 | K18: 0 | L18: 0 | M18: 0 | N18: 0 | O18: 0 | P18: 0 | Q18: 0 | R18: 0
A19: Salz | B19: g/100 g | C19: 0 | D19: 0 | E19: 0.4 | F19: 0 | G19: 0
B20: im Produkt | C20: =(C4*C19)/100 -> 0 | D20: =(D4*D19)/100 -> 0 | E20: 0.64 | F20: 0 | G20: 0 | H20: 0 | I20: 0 | J20: 0 | K20: 0 | L20: 0 | M20: 0 | N20: 0 | O20: 0 | P20: 0 | Q20: 0 | R20: 0
A22: Gesamtmenge nach der Zubereitung [g/ml] | B22: 1060 | I22: Total im Rezept | K22: Menge pro 100 g
E23: Energie kJ | I23: =SUM(C6:Q6) -> 22784.4 | K23: =(I23*100)/$B$22 -> 2149.471698
E24: Energie kcal | I24: =SUM(C8:R8) -> 5451 | K24: =(I24*100)/$B$22 -> 514.245283
E25: Gesamtfett | I25: =SUM(C10:R10) -> 292.07 | K25: 27.55377358
E26: davon gesättigte Fettsäuren | I26: =SUM(C12:R12) -> 167.72 | K26: 15.82264151
E27: Kohlenhydrate | I27: =SUM(C14:R14) -> 600.37 | K27: 56.63867925
E28: davon Zucker | I28: =SUM(C16:R16) -> 299.35 | K28: 28.24056604
E29: Eiweiss/Protein | I29: =SUM(C18:R18) -> 88.56 | K29: 8.354716981
E30: Salz | I30: =SUM(C20:R20) -> 0.64 | K30: 0.06037735849
A31: © BFS Fachgruppe Direktvermarktung 2020, überarbeitet 2024 | L31: Quelle: Nährwertdaten: www.naehrwertdaten.ch
A32: Eva Flückiger, Paula Furrer-Amrein, Andrea Heimberg Müller, Manueal Isenschmid; überarbeitet Stefanie Rohn | L32: Bundesamt für Lebensmittelsicherheit und Veterinärwesen BLV

Sheet Himbeerkonfitüre
A1: Nährwertberechnung | L1: Himbeerkonfitüre
B3: Zutaten | C3: Himbeeren | D3: Zucker, weiss | E3: Zitronensaft
B4: Menge im Rezept in g/ml | C4: 1000 | D4: 900 | E4: 20
A5: Energie | B5: kJ/100 g | C5: 183 | D5: 1700 | E5: 122
B6: im Produkt | C6: =(C4*C5)/100 -> 1830 | D6: =(D4*D5)/100 -> 15300 | E6: 24.4 | F6: 0 | G6: 0 | H6: 0 | I6: 0 | J6: 0 | K6: 0 | L6: 0 | M6: 0 | N6: 0 | O6: 0 | P6: =(P4*P5)/100 -> 0 | Q6: =(Q4*Q5)/100 -> 0 | R6: 0
B7: kcal/100 g | C7: 44 | D7: 400 | E7: 28
B8: im Produkt | C8: =(C4*C7)/100 -> 440 | D8: =(D4*D7)/100 -> 3600 | E8: 5.6 | F8: 0 | G8: 0 | H8: 0 | I8: 0 | J8: 0 | K8: 0 | L8: 0 | M8: 0 | N8: 0 | O8: 0 | P8: 0 | Q8: 0 | R8: 0
A9: Gesamtfett | B9: g/100 g | C9: 0.8 | D9: 0 | E9: 0.2
B10: im Produkt | C10: =(C4*C9)/100 -> 8 | D10: =(D4*D9)/100 -> 0 | E10: 0.04 | F10: 0 | G10: 0 | H10: 0 | I10: 0 | J10: 0 | K10: 0 | L10: 0 | M10: 0 | N10: 0 | O10: 0 | P10: 0 | Q10: 0 | R10: 0
A11: davon gesättigte Fettsäuren | B11: g/100 g | C11: 0.1 | D11: 0 | E11: 0
B12: im Produkt | C12: =(C4*C11)/100 -> 1 | D12: =(D4*D11)/100 -> 0 | E12: 0 | F12: 0 | G12: 0 | H12: 0 | I12: 0 | J12: 0 | K12: 0 | L12: 0 | M12: 0 | N12: 0 | O12: 0 | P12: 0 | Q12: 0 | R12: 0
A13: Kohlenhydrate | B13: g/100 g | C13: 5.8 | D13: 100 | E13: 2.5
B14: im Produkt | C14: =(C4*C13)/100 -> 58 | D14: =(D4*D13)/100 -> 900 | E14: 0.5 | F14: 0 | G14: 0 | H14: 0 | I14: 0 | J14: 0 | K14: 0 | L14: 0 | M14: 0 | N14: 0 | O14: 0 | P14: 0 | Q14: 0 | R14: 0
A15: davon Zucker | B15: g/100 g | C15: 5.4 | D15: 100 | E15: 2.5
B16: im Produkt | C16: =(C4*C15)/100 -> 54 | D16: =(D4*D15)/100 -> 900 | E16: 0.5 | F16: 0 | G16: 0 | H16: 0 | I16: 0 | J16: 0 | K16: 0 | L16: 0 | M16: 0 | N16: 0 | O16: 0 | P16: 0 | Q16: 0 | R16: 0
A17: Eiweiss/Protein | B17: g/100 g | C17: 1.2 | D17: 0 | E17: 0.4
B18: im Produkt | C18: =(C4*C17)/100 -> 12 | D18: =(D4*D17)/100 -> 0 | E18: 0.08 | F18: 0 | G18: 0 | H18: 0 | I18: 0 | J18: 0 | K18: 0 | L18: 0 | M18: 0 | N18: 0 | O18: 0 | P18: 0 | Q18: 0 | R18: 0
A19: Salz | B19: g/100 g | C19: 0 | D19: 0 | E19: 0
B20: im Produkt | C20: =(C4*C19)/100 -> 0 | D20: =(D4*D19)/100 -> 0 | E20: 0 | F20: 0 | G20: 0 | H20: 0 | I20: 0 | J20: 0 | K20: 0 | L20: 0 | M20: 0 | N20: 0 | O20: 0 | P20: 0 | Q20: 0 | R20: 0
A22: Gesamtmenge nach der Zubereitung [g/ml] | B22: 1800 | I22: Total im Rezept | K22: Menge pro 100 g
E23: Energie kJ | I23: =SUM(C6:Q6) -> 17154.4 | K23: =(I23*100)/$B$22 -> 953.0222222
E24: Energie kcal | I24: =SUM(C8:R8) -> 4045.6 | K24: =(I24*100)/$B$22 -> 224.7555556
E25: Gesamtfett | I25: =SUM(C10:R10) -> 8.04 | K25: 0.4466666667
E26: davon gesättigte Fettsäuren | I26: =SUM(C12:R12) -> 1 | K26: 0.05555555556
E27: Kohlenhydrate | I27: =SUM(C14:R14) -> 958.5 | K27: 53.25
E28: davon Zucker | I28: =SUM(C16:R16) -> 954.5 | K28: 53.02777778
E29: Eiweiss/Protein | I29: =SUM(C18:R18) -> 12.08 | K29: 0.6711111111
E30: Salz | I30: =SUM(C20:R20) -> 0 | K30: 0
A31: © BFS Fachgruppe Direktvermarktung 2020, überarbeitet 2024 | L31: Quelle: Nährwertdaten: www.naehrwertdaten.ch
A32: Eva Flückiger, Paula Furrer-Amrein, Andrea Heimberg Müller, Manueal Isenschmid; überarbeitet Stefanie Rohn | L32: Bundesamt für Lebensmittelsicherheit und Veterinärwesen BLV
